bitfinex/quotes_ETHUSD_20260130
["timestamp","ask_amount","ask_price","bid_price","bid_amount"]
[1769751664977,12.44973782,2754.3,2753.8,1.67082438]
[1769751665541,12.44973782,2754.3,2753.8,0.763]
[1769751665840,12.44973782,2754.3,2753.8,1.67081995]
[1769751666067,12.44973782,2754.3,2753.6,0.002]
[1769751666272,12.44973782,2754.3,2753.8,0.9078328]
[1769751667065,12.44973782,2754.3,2753.6,0.002]
[1769751667383,12.44973782,2754.3,2753.7,0.90785244]
[1769751667742,12.44973782,2754.3,2753.6,3.63359341]
[1769751669749,12.44973782,2754.3,2753.6,0.90990238]
[1769751670547,1e-08,2754.3,2753.7,12.7725782]
[1769751670769,1e-08,2754.3,2753.8,2.0168962]
[1769751671661,1e-08,2754.3,2753.8,2.92470289]
[1769751671866,1e-08,2754.3,2753.8,2.92471855]
[1769751672484,1e-08,2754.3,2753.8,0.90782235]
[1769751673777,1e-08,2754.3,2753.7,0.90784299]
[1769751676168,1e-08,2754.3,2753.6,0.002]
[1769751677491,0.001,2754.1,2753.6,0.002]
[1769751678969,0.001,2754.1,2753.6,0.90990238]
[1769751679501,0.001,2754.1,2753.6,1.44035357]
[1769751680712,12.45073781,2754.1,2753.6,1.44035357]
[1769751681203,12.45073781,2754.1,2753.6,0.90990238]
[1769751684510,12.45073781,2754.1,2753.6,0.002]
[1769751688612,13.35847777,2754.1,2753.6,0.002]
[1769751688781,12.45073781,2754.1,2753.6,0.002]
[1769751689317,12.45073781,2754.1,2753.8,0.002]
[1769751689518,0.001,2753.9,2753.8,0.002]
[1769751689719,12.29897421,2753.9,2753.8,0.002]
[1769751696694,13.20677901,2753.9,2753.5,0.002]
[1769751697032,13.20677901,2753.9,2753.1,0.91006726]
[1769751697033,12.29897421,2753.9,2753.1,0.91005359]
[1769751698239,0.001,2753.9,2753.1,13.45156809]
[1769751702152,0.001,2754.1,2753.2,12.5415145]
[1769751702451,0.001,2754.1,2753.4,12.5415145]
[1769751702740,0.001,2753.7,2753.4,13.3025145]
[1769751702945,0.001,2753.7,2753.6,12.5415145]
[1769751705246,0.001,2753.7,2753.6,13.44941688]
[1769751707336,0.001,2754.1,2753.6,13.44941688]
[1769751708755,0.001,2754.1,2753.6,0.90790238]
[1769751711057,13.1304168,2753.9,2753.5,0.90793267]
[1769751711566,13.1304168,2753.9,2753.5,0.90791726]
[1769751712860,13.1304168,2753.9,2753.5,0.907932]
[1769751713162,13.1304168,2753.9,2753.4,0.761]
[1769751713651,13.1304168,2753.9,2753.3,0.763]
[1769751714855,0.001,2753.7,2753.3,0.763]
[1769751715359,0.001,2753.7,2753.3,1.67097845]
[1769751715829,13.1987272,2753.7,2753.3,1.67097845]
[1769751718660,13.1987272,2753.7,2753.3,0.90997845]
[1769751719967,13.1987272,2753.7,2753.3,0.002]
[1769751727176,13.1987272,2753.7,2753.5,0.002]
[1769751735377,0.001,2753.7,2753.5,0.002]
[1769751743787,0.001,2753.9,2753.5,0.002]
[1769751747489,12.8586913,2753.9,2753.5,0.002]
[1769751749595,0.001,2753.9,2753.5,13.24797377]
[1769751750587,0.001,2753.9,2753.5,0.002]
[1769751751884,0.001,2753.9,2753.7,0.002]
[1769751771793,12.28554219,2754.1,2753.7,0.002]
[1769751773223,12.28554219,2754.1,2753.5,0.002]
[1769751775824,12.28554219,2754.1,2753.7,0.002]
[1769751777830,1e-08,2754.3,2753.7,0.002]
[1769751777996,1e-08,2754.3,2753.7,1.34433532]
[1769751780232,1e-08,2754.3,2753.7,2.25220175]
[1769751781428,0.39209825,2754.8,2754.3,13.41935318]
[1769751782027,0.39209825,2754.8,2754.2,6.48802245]
[1769751782028,13.90307436,2754.8,2753.7,2.25220175]
[1769751782233,12.60346329,2754.6,2753.7,1.67086643]
[1769751782432,13.51103673,2754.6,2753.7,1.67086643]
[1769751782931,13.51103673,2754.6,2753.7,0.90985725]
[1769751783132,12.60346329,2754.6,2753.7,14.32921043]
[1769751783634,1.29960604,2754.8,2753.9,13.41935318]
[1769751783635,12.99556154,2754.8,2753.9,13.41935318]
[1769751783838,12.99556154,2754.8,2754.0,15.41009074]
[1769751784336,12.99556154,2754.8,2754.0,2.89848848]
[1769751785729,12.99556154,2754.8,2754.0,16.31784166]
[1769751786138,0.39209825,2754.8,2754.0,16.31784166]
[1769751786912,0.39209825,2754.8,2754.2,13.41935318]
[1769751787114,0.001,2755.1,2754.3,15.41009074]
[1769751787618,0.001,2755.1,2754.4,19.90737563]
[1769751787824,12.60346329,2755.0,2754.3,1.99073756]
[1769751788031,0.001,2755.1,2754.2,14.18035318]
[1769751788349,0.001,2755.1,2754.4,6.48802245]
[1769751788739,12.60446329,2755.1,2754.2,0.761]
[1769751789042,12.60446329,2755.1,2754.4,0.90762474]
[1769751791541,12.60446329,2755.1,2754.3,3.63067856]
[1769751791542,12.60446329,2755.1,2754.3,0.90767164]
[1769751791741,12.60446329,2755.1,2754.4,0.52994452]
[1769751793937,13.51187632,2755.1,2754.4,0.52994452]
[1769751794239,13.51187632,2755.1,2754.1,0.761]
[1769751794413,13.51187632,2755.1,2754.1,1.66872069]
[1769751797022,13.51187632,2755.1,2754.1,0.761]
[1769751798115,13.51187632,2755.1,2753.9,0.002]
[1769751798312,6.48802245,2754.9,2753.9,0.002]
[1769751798542,13.25226553,2754.8,2753.9,0.002]
[1769751798930,12.60346329,2754.6,2753.9,0.002]
[1769751800247,12.60346329,2754.6,2754.2,0.002]
[1769751800918,13.51100313,2754.7,2754.2,0.002]
[1769751801118,12.60346329,2754.7,2754.2,0.002]
[1769751801719,13.48680226,2754.7,2754.2,0.002]
[1769751802532,13.48680226,2754.7,2753.9,0.90980347]
[1769751802927,0.90757278,2754.6,2753.9,0.002]
[1769751803132,12.60346329,2754.5,2753.9,0.002]
[1769751805552,13.51107025,2754.5,2753.9,0.002]
[1769751805721,14.15987249,2754.5,2753.9,0.002]
[1769751814457,14.15987249,2754.5,2754.1,0.002]
[1769751814833,13.53593994,2754.4,2754.1,0.002]
[1769751820631,0.001,2754.4,2754.1,0.002]
[1769751822133,12.53075272,2754.4,2754.1,0.002]
[1769751822333,0.88333897,2754.3,2754.1,0.002]
[1769751822735,12.53075272,2754.4,2754.1,0.002]
[1769751827966,0.001,2754.3,2754.1,0.002]
[1769751832770,0.001,2754.9,2754.1,12.6121028]
[1769751832969,13.43823886,2754.9,2754.1,0.002]
[1769751833148,13.43823886,2754.9,2754.1,1.98803478]
[1769751833348,12.53075272,2754.9,2754.1,1.98803478]
[1769751833945,12.53075272,2754.9,2754.1,12.6121028]
[1769751834971,12.53075272,2754.9,2754.2,0.90770459]
[1769751835149,0.001,2754.9,2754.2,13.51780739]
[1769751836068,12.55485228,2754.9,2754.2,0.90770459]
[1769751836373,12.55485228,2754.9,2754.3,0.4540574]
[1769751836575,12.55485228,2754.9,2754.2,0.90770459]
[1769751837276,12.55485228,2754.9,2754.1,16.39536852]
[1769751838378,12.55485228,2754.9,2754.1,13.67219273]
[1769751838577,13.46233047,2754.9,2754.1,13.67219273]
[1769751838747,12.55485228,2754.9,2754.1,13.67219273]
[1769751838947,13.46232864,2754.9,2754.2,2.4549498]
[1769751839170,12.55485228,2754.9,2754.1,0.90973755]
[1769751839875,12.55485228,2754.9,2754.3,0.002]
[1769751840065,0.001,2754.7,2754.3,0.002]
[1769751844379,12.55485228,2754.7,2754.3,0.002]
[1769751846880,13.46240173,2754.7,2754.3,0.002]
[1769751847081,12.55385228,2754.6,2754.3,0.002]
[1769751848352,0.001,2754.7,2754.3,0.002]
[1769751848552,12.55485228,2754.7,2754.3,0.002]
[1769751849259,13.46239264,2754.7,2754.3,0.002]
[1769751851796,12.55385228,2754.4,2754.3,0.002]
[1769751855394,0.001,2754.5,2754.3,0.002]
[1769751855560,12.55385228,2754.4,2754.3,0.002]
[1769751857167,12.55385228,2754.4,2754.1,0.002]
[1769751857996,0.001,2754.5,2754.1,0.002]
[1769751861197,13.46245853,2754.5,2754.1,0.002]
[1769751861374,12.55485228,2754.5,2754.1,0.002]
[1769751861698,0.001,2754.5,2754.1,0.002]
[1769751864098,0.001,2754.7,2754.3,0.002]
[1769751864300,13.46239733,2754.7,2754.3,0.002]
[1769751872392,13.46239733,2754.7,2754.1,0.002]
[1769751872600,12.67334602,2754.6,2754.1,0.002]
[1769751873078,12.67334602,2754.6,2754.0,1e-08]
[1769751874079,13.43434602,2754.6,2753.7,1e-08]
[1769751874387,12.67334602,2754.4,2753.7,1e-08]
[1769751874782,7.39118746,2754.5,2753.3,0.002]
[1769751874783,12.67334602,2754.1,2753.3,0.002]
[1769751876202,7.39118746,2754.5,2753.1,0.00100979]
[1769751876203,12.31573934,2753.9,2753.1,0.00100979]
[1769751876527,12.31573934,2753.7,2753.1,0.00100979]
[1769751876692,12.31573934,2753.7,2753.1,1.566e-05]
[1769751880720,12.31573934,2753.5,2753.1,1.566e-05]
[1769751882800,0.90796833,2753.4,2753.1,1.566e-05]
[1769751883512,13.22370767,2753.4,2753.1,1.566e-05]
[1769751884298,0.90795963,2753.5,2753.1,1.566e-05]
[1769751885420,13.22369897,2753.5,2753.1,1.566e-05]
[1769751890992,0.90795963,2753.5,2753.1,1.566e-05]
[1769751895222,13.22369897,2753.5,2753.1,1.566e-05]
[1769751900725,0.001,2753.3,2753.1,1.566e-05]
[1769751901041,1.16997561,2753.3,2753.1,1.566e-05]
[1769751902529,0.001,2753.3,2753.1,1.566e-05]
[1769751903526,0.90900381,2753.3,2753.1,1.566e-05]
[1769751904122,14.03220898,2753.3,2753.1,1.566e-05]
[1769751907234,0.001,2753.3,2753.1,1.566e-05]
[1769751910338,3.63136913,2753.8,2753.1,1.566e-05]
[1769751910339,0.90777051,2754.0,2753.1,12.63704968]
[1769751910550,1.28926979,2754.1,2753.3,12.63703402]
[1769751915011,14.41247496,2754.1,2753.3,12.63703402]
[1769751915206,14.41247496,2754.1,2753.2,1.26390497]
[1769751915439,14.41247496,2754.1,2753.1,12.63704968]
[1769751915815,14.41247496,2754.1,2753.1,1.566e-05]
[1769751918037,13.12320517,2753.9,2753.1,1.566e-05]
[1769751918241,13.88420517,2753.9,2753.1,1.566e-05]
[1769751920453,13.12320517,2753.7,2753.1,1.566e-05]
[1769751922218,13.12320517,2753.6,2753.1,1.566e-05]
[1769751922617,14.03114052,2753.5,2753.1,1.566e-05]
[1769751923220,14.03114052,2753.5,2753.0,0.002]
[1769751923646,13.12320517,2753.3,2753.0,0.001]
[1769751923861,13.12320517,2753.3,2752.9,0.20761622]
[1769751924027,13.12320517,2753.3,2752.6,0.00100979]
[1769751925156,13.12320517,2753.1,2752.6,0.00100979]
[1769751928169,0.90810025,2753.0,2752.6,0.00100979]
[1769751932566,16.87061068,2753.1,2752.6,0.00100979]
[1769751934064,13.23820967,2753.0,2752.6,0.00100979]
[1769751934459,3.63240101,2753.1,2752.6,0.00100979]
[1769751935552,0.761,2753.0,2752.6,0.00100979]
[1769751935753,0.761,2753.0,2752.8,0.001]
[1769751935944,0.761,2753.0,2752.6,1.37e-05]
[1769751936461,0.90813324,2752.9,2752.6,1.37e-05]
[1769751937172,0.90813324,2752.9,2751.4,0.9106105]
[1769751937173,12.59883276,2752.7,2751.4,0.9106105]
[1769751937369,6.49301306,2752.4,2751.5,12.59402037]
[1769751937547,19.09184582,2752.4,2751.5,12.59402037]
[1769751937745,6.49301306,2752.4,2751.5,13.85362241]
[1769751937947,12.59883276,2752.3,2751.5,13.85362241]
[1769751938874,0.90836421,2752.2,2751.5,12.59402037]
[1769751939077,12.59883276,2752.0,2751.5,0.0020137]
[1769751939774,13.35983276,2752.0,2751.5,0.0020137]
[1769751939976,6.49301306,2752.1,2751.5,0.0020137]
[1769751940271,0.761,2752.0,2751.5,0.0020137]
[1769751941172,0.761,2752.0,2751.4,0.002]
[1769751941478,15.3717441,2752.1,2751.4,0.002]
[1769751941771,9.2659244,2752.1,2751.4,0.002]
[1769751941956,12.59883276,2752.0,2751.4,0.002]
[1769751942156,13.02749056,2751.9,2751.4,0.002]
[1769751942559,0.4286578,2751.9,2751.4,0.002]
[1769751942757,20.76127375,2752.1,2751.4,0.002]
[1769751943168,19.85284582,2752.1,2751.4,0.002]
[1769751943370,14.26823656,2752.1,2751.4,0.002]
[1769751945951,13.50723656,2752.1,2751.4,0.002]
[1769751946152,0.762,2752.0,2751.4,0.002]
[1769751946752,13.36083276,2752.0,2751.4,0.002]
[1769751947583,13.36083276,2752.0,2751.6,0.002]
[1769751947963,0.762,2752.0,2751.6,0.002]
[1769751948271,0.762,2752.1,2751.6,0.002]
[1769751949389,13.36083276,2752.1,2751.6,0.002]
[1769751949793,12.59883276,2752.0,2751.6,0.002]
[1769751951288,0.762,2752.1,2751.6,0.002]
[1769751953590,12.59883276,2752.1,2751.6,0.002]
[1769751953759,13.36083276,2752.1,2751.6,0.002]
[1769751953958,12.59883276,2752.0,2751.6,0.002]
[1769751954160,8.16341097,2752.1,2750.9,13.50080015]
[1769751954161,12.59883276,2751.7,2750.9,13.50080015]
[1769751954376,12.59883276,2752.0,2750.9,13.50080015]
[1769751954578,0.762,2751.8,2750.9,13.50080015]
[1769751955757,13.0840165,2751.8,2750.9,13.50080015]
[1769751956173,13.99252373,2751.8,2750.9,13.50080015]
[1769751956374,13.0840165,2751.8,2750.9,14.65397268]
[1769751956688,12.3220165,2751.8,2750.9,14.65397268]
[1769751956889,12.3220165,2751.1,2750.5,0.90890749]
[1769751957091,0.762,2751.5,2750.6,12.6864548]
[1769751957280,0.90852742,2751.8,2750.9,12.6864548]
[1769751957281,1.70974577,2751.4,2750.9,12.6864548]
[1769751957482,14.03176227,2751.4,2750.6,2.54108512]
[1769751957781,14.03176227,2751.4,2750.6,0.90887594]
[1769751958093,14.03176227,2751.4,2750.6,13.59533074]
[1769751958267,14.03176227,2751.4,2750.7,0.90885402]
[1769751958469,14.94040533,2751.4,2750.6,0.90887323]
[1769751958694,14.94040533,2751.4,2750.5,0.90889295]
[1769751958874,14.94040533,2751.4,2750.5,15.31846198]
[1769751959077,2.61838883,2751.4,2750.5,15.31846198]
[1769751959600,2.61838883,2751.4,2751.1,0.002]
[1769751961093,1.70974577,2751.4,2751.1,0.002]
[1769751962297,14.03176227,2751.4,2751.1,0.002]
[1769751962466,2.61838466,2751.4,2751.1,0.002]
[1769751962670,14.03176227,2751.4,2751.1,0.002]
[1769751962871,1.76894338,2751.3,2750.9,0.002]
[1769751963299,14.09095988,2751.3,2750.9,0.002]
[1769751963607,1.61760174,2751.2,2750.9,0.002]
[1769751966034,12.3220165,2751.1,2750.9,0.002]
[1769751966174,12.3220165,2751.1,2750.2,0.00100196]
[1769751966375,14.70121824,2751.1,2750.2,0.00100196]
[1769751967175,12.3220165,2750.9,2750.2,0.00100196]
[1769751967773,12.3220165,2750.9,2750.2,12.68745676]
[1769751967972,12.3220165,2750.9,2750.2,13.95620244]
[1769751968174,1.61720174,2751.1,2750.2,13.95620244]
[1769751969112,1.61720174,2751.1,2750.3,0.90899174]
[1769751969314,1.61720174,2751.1,2750.4,12.6864548]
[1769751970385,1.61720174,2751.1,2750.3,13.59544654]
[1769751970581,1.61720174,2751.1,2750.5,12.6864548]
[1769751971287,1.61720174,2751.1,2750.6,13.5953474]
[1769751971812,0.001,2751.9,2750.7,11.01371188]
[1769751971970,0.001,2751.9,2750.9,11.01271188]
[1769751973523,0.001,2751.9,2751.1,10.92425975]
[1769751973814,0.001,2751.9,2751.3,10.92425975]
[1769751974381,0.001,2751.9,2751.2,1.18330202]
[1769751974612,0.001,2751.9,2751.2,12.06413015]
[1769751975619,12.3230165,2751.9,2751.2,2.09197213]
[1769751976113,0.001,2751.9,2751.2,12.92998523]
[1769751976309,0.001,2751.9,2751.3,12.49450193]
[1769751976730,12.3220165,2752.7,2751.4,10.79468173]
[1769751977985,12.3220165,2752.7,2751.5,0.90859531]
[1769751978206,13.23022315,2752.7,2751.5,0.90859531]
[1769751980104,13.23022315,2752.7,2751.3,0.90866136]
[1769751980316,12.3220165,2752.5,2751.3,0.90866136]
[1769751982924,12.3220165,2752.3,2750.9,10.54996762]
[1769751984725,0.001,2752.5,2750.9,10.54996762]
[1769751984901,0.001,2752.5,2751.1,10.4720927]
[1769751985929,10.92108198,2753.2,2751.4,10.0708838]
[1769751986095,10.92108198,2753.2,2751.6,10.0708838]
[1769751986096,11.82913459,2753.2,2751.6,10.0708838]
[1769751986299,11.82913459,2753.2,2751.8,10.0708838]
[1769751986830,11.82912005,2753.2,2751.8,10.0708838]
[1769751987026,11.82912005,2753.2,2751.9,0.90846324]
[1769751987400,10.92108198,2753.2,2751.9,10.9075579]
[1769751987600,10.92108198,2753.2,2752.1,9.99909466]
[1769751989232,10.92108198,2753.2,2752.2,0.90836421]
[1769751989439,10.92108198,2753.4,2752.3,9.963667]
[1769751990134,11.82905226,2753.4,2752.3,9.963667]
[1769751990333,10.92108198,2753.3,2752.4,1.08720312]
[1769751990635,10.92108198,2753.3,2752.2,0.90836421]
[1769751991898,10.92108198,2753.3,2752.2,10.76822005]
[1769751992412,3.63251558,2753.7,2752.2,10.76822005]
[1769751992413,10.92208198,2753.7,2752.2,10.76822005]
[1769751995240,0.001,2753.1,2752.2,10.76822005]
[1769751995443,0.001,2753.1,2752.4,9.75965721]
[1769751996022,0.001,2753.7,2752.5,9.69367904]
[1769751996834,0.001,2753.7,2752.7,9.66168428]
[1769751997957,11.75435508,2753.7,2752.7,9.66168428]
[1769751999924,11.75435508,2753.7,2752.8,0.90816623]
[1769752000128,11.75435508,2753.7,2752.9,10.98826446]
[1769752000129,0.001,2753.7,2752.9,10.98826446]
[1769752002763,0.001,2753.7,2753.0,0.90810025]
[1769752003761,11.75435508,2753.7,2753.0,0.90810025]
[1769752007033,0.001,2753.7,2753.0,10.13245009]
[1769752007233,0.001,2753.5,2753.0,10.13245009]
[1769752007435,0.001,2753.5,2753.1,1.51851026]
[1769752008162,11.75335508,2754.1,2753.2,10.08547308]
[1769752010330,0.001,2754.2,2753.2,10.08547308]
[1769752011436,11.75435508,2754.2,2753.2,10.08547308]
[1769752012733,11.75435508,2754.2,2753.2,0.90803428]
[1769752013971,12.66207014,2754.2,2752.9,3.63248659]
[1769752014168,12.66207014,2754.2,2752.7,7.44270504]
[1769752014368,12.66207014,2754.2,2752.8,0.90816623]
[1769752015236,11.75335508,2754.0,2752.6,0.90821369]
[1769752015471,11.75335508,2754.0,2752.7,0.90819394]
[1769752016241,10.46221645,2753.8,2752.6,8.77805262]
[1769752016971,10.46221645,2753.8,2752.4,8.73828997]
[1769752017954,10.46221645,2753.8,2752.4,0.002]
[1769752018150,10.46221645,2753.6,2752.4,0.002]
[1769752018355,1.13700199,2753.7,2752.4,0.002]
[1769752018356,10.46221645,2753.4,2752.4,0.002]
[1769752019261,10.46221645,2753.4,2752.6,0.002]
[1769752023678,11.37020354,2753.4,2752.6,0.002]
[1769752027242,11.37018826,2753.4,2752.6,8.34629038]
[1769752027450,10.46221645,2753.4,2752.7,0.83462904]
[1769752027650,10.46221645,2753.4,2752.6,0.002]
[1769752027850,11.3701888,2753.4,2752.6,0.002]
[1769752028052,11.37019173,2753.4,2752.6,0.002]
[1769752028275,11.37018488,2753.4,2752.6,0.002]
[1769752028478,10.46221645,2753.4,2752.6,0.002]
[1769752028675,10.85735567,2753.3,2752.6,0.002]
[1769752030883,10.46221645,2753.3,2752.6,0.002]
[1769752031482,10.46221645,2753.3,2752.8,0.002]
[1769752032190,10.46221645,2753.7,2752.8,0.002]
[1769752033784,10.46221645,2753.5,2752.8,0.002]
[1769752033988,10.46221645,2753.7,2752.8,0.002]
[1769752034186,11.37008963,2753.7,2752.8,1.46094752]
[1769752037492,11.37008963,2753.7,2752.9,0.90813324]
[1769752038892,11.37008963,2753.7,2752.8,0.91016623]
[1769752041510,10.46221645,2753.7,2752.8,0.002]
[1769752041711,11.37009275,2753.7,2752.8,0.002]
[1769752051812,11.37009275,2753.7,2752.8,7.5151191]
[1769752052827,11.37009275,2753.7,2752.8,0.002]
[1769752055943,11.37009275,2753.7,2753.0,0.002]
[1769752060105,10.46221645,2753.7,2753.0,0.002]
[1769752060633,11.37009196,2753.7,2752.8,0.002]
[1769752060803,10.38239588,2753.5,2752.8,0.002]
[1769752061341,0.001,2753.9,2753.0,7.25602493]
[1769752061641,11.29120596,2753.9,2752.9,6.4895852]
[1769752061823,11.29120596,2753.9,2753.0,0.90810025]
[1769752062026,10.38339588,2753.9,2753.0,2.37123869]
[1769752062511,11.29120426,2753.9,2753.0,2.37123869]
[1769752063936,10.38339588,2753.9,2753.0,9.55511166]
[1769752064933,10.38339588,2753.9,2753.1,7.16039361]
[1769752065644,11.29120523,2753.9,2753.1,7.16039361]
[1769752065842,11.29120523,2753.9,2753.2,0.90803428]
[1769752066159,10.38339588,2753.9,2753.1,1.31564027]
[1769752067452,11.29120056,2753.9,2753.1,1.31564027]
[1769752067746,10.38339588,2753.9,2753.1,1.31564027]
[1769752067952,11.29120685,2753.9,2753.0,2.37123453]
[1769752068146,11.29120685,2753.9,2753.0,0.91009609]
[1769752068351,11.29120685,2753.9,2753.1,0.90806452]
[1769752068553,10.38239588,2753.6,2753.1,0.90806452]
[1769752070721,0.001,2753.7,2753.0,7.02697235]
[1769752070926,0.001,2753.9,2753.3,7.02397235]
[1769752071337,0.001,2753.9,2753.1,7.28309576]
[1769752071338,0.001,2754.2,2753.5,7.02397235]
[1769752071657,0.001,2754.2,2753.8,7.00229477]
[1769752074066,0.001,2754.2,2753.9,0.90780347]
[1769752077445,0.001,2754.7,2754.0,6.4895852]
[1769752077664,0.001,2754.7,2754.1,1.42544822]
[1769752079969,0.001,2754.7,2754.2,0.90770459]
[1769752080875,0.001,2754.9,2754.3,13.28804534]
[1769752081193,0.001,2754.9,2754.4,6.79746014]
[1769752082060,9.84086148,2754.9,2754.1,1.42544822]
[1769752082264,9.84086148,2754.9,2754.4,0.90762961]
[1769752082465,9.84086148,2754.9,2754.4,0.90763747]
[1769752084187,9.84086148,2754.9,2754.3,3.63063799]
[1769752084391,0.001,2754.9,2754.1,1.42544822]
[1769752084684,10.74833608,2754.9,2753.7,0.90784318]
[1769752085068,10.74833608,2754.9,2753.7,0.9078543]
[1769752085385,10.74833608,2754.9,2753.6,0.90789163]
[1769752085578,10.74833608,2754.9,2753.7,0.90786811]
[1769752085783,9.83986148,2754.8,2753.7,0.90786811]
[1769752086363,9.83986148,2754.6,2753.6,0.9078824]
[1769752087794,9.83986148,2754.6,2753.6,7.57606604]
[1769752089285,10.74744509,2754.6,2753.6,7.57606604]
[1769752089665,9.83986148,2754.6,2753.6,7.57606604]
[1769752090012,9.83986148,2754.6,2753.7,7.83002688]
[1769752090562,10.74743747,2754.6,2753.7,7.83002688]
[1769752090763,9.83986148,2754.6,2753.7,7.83002688]
[1769752092092,9.83986148,2754.6,2753.8,0.90783644]
[1769752092463,10.74743619,2754.6,2753.8,0.90983644]
[1769752092811,10.74743619,2754.6,2753.8,2.14695873]
[1769752093663,10.74743619,2754.6,2753.9,6.56553446]
[1769752093664,9.83986148,2754.6,2753.9,6.56553446]
[1769752093860,0.90855101,2754.7,2753.8,2.14695873]
[1769752093861,0.001,2754.7,2754.0,13.05511966]
[1769752094096,0.001,2754.7,2754.1,6.56553446]
[1769752094297,0.001,2754.7,2754.2,7.87104643]
[1769752095083,9.83986148,2754.6,2754.2,1.30551197]
[1769752095389,9.83986148,2754.6,2753.8,2.14695873]
[1769752095390,9.83986148,2754.6,2753.8,8.22002611]
[1769752095590,9.83986148,2754.6,2753.8,1.67083644]
[1769752095771,10.74745182,2754.6,2753.8,1.67083644]
[1769752095974,9.83986148,2754.6,2753.8,0.90983644]
[1769752097997,10.74743749,2754.6,2753.8,0.002]
[1769752098299,10.74743749,2754.6,2753.8,1.18391658]
[1769752099191,10.74743749,2754.6,2753.8,0.002]
[1769752100102,10.74743749,2754.6,2753.5,0.002]
[1769752100103,9.83986148,2754.2,2753.5,0.002]
[1769752102584,10.74759593,2754.2,2753.5,0.002]
[1769752104679,10.74759593,2754.2,2753.7,0.002]
[1769752104885,9.84086148,2754.1,2753.7,0.002]
[1769752106097,9.84086148,2754.1,2753.5,0.002]
[1769752106893,9.54119844,2753.9,2753.5,0.002]
[1769752108780,10.44902561,2753.9,2753.5,0.002]
[1769752117600,10.44902561,2753.9,2753.7,0.002]
[1769752117927,9.47717151,2753.9,2753.7,0.002]
[1769752118535,10.38497498,2753.9,2753.7,0.002]
[1769752121730,9.47717151,2753.9,2753.7,0.002]
[1769752122045,10.38593991,2754.1,2753.7,0.002]
[1769752123239,0.001,2754.1,2753.7,0.002]
[1769752127148,9.47817151,2754.1,2753.7,0.002]
[1769752127363,10.42598866,2754.1,2753.7,0.002]
[1769752128974,0.001,2753.9,2753.7,0.002]
[1769752135456,10.83475031,2754.1,2753.7,0.002]
[1769752138879,0.94781715,2754.1,2753.7,0.002]
[1769752139075,0.90772641,2754.2,2753.7,0.002]
[1769752139499,10.20576294,2754.2,2753.7,0.002]
[1769752141158,0.001,2753.9,2753.7,0.002]
[1769752149774,6.48942982,2754.7,2753.7,6.23838489]
[1769752149775,9.29903653,2754.7,2753.7,6.23838489]
[1769752149970,10.20658053,2754.7,2753.7,6.23838489]
[1769752150291,10.20658053,2754.7,2753.8,0.62383849]
[1769752151291,10.20658053,2754.7,2753.7,0.002]
[1769752152470,10.20658053,2754.7,2753.7,6.21715522]
[1769752152779,10.20658053,2754.7,2753.9,0.002]
[1769752153504,10.20657794,2754.7,2753.9,0.90980347]
[1769752153667,10.20660205,2754.7,2753.9,0.002]
[1769752153871,10.20657824,2754.7,2754.0,0.71145369]
[1769752154073,9.29903653,2754.7,2754.0,0.71145369]
[1769752154268,9.29803653,2754.6,2754.0,0.71145369]
[1769752155706,9.29803653,2754.6,2754.0,1.61921621]
[1769752158501,9.29803653,2754.6,2754.0,1.61921919]
[1769752159476,9.29803653,2754.6,2754.0,0.71145369]
[1769752160375,10.20561346,2754.6,2754.0,0.71145369]
[1769752161300,10.20561346,2754.6,2753.9,0.002]
[1769752165179,9.29803653,2754.3,2753.9,0.002]
[1769752166113,9.29803653,2754.3,2753.7,0.002]
[1769752166410,9.29803653,2754.3,2753.6,0.002]
[1769752167310,10.20572896,2754.3,2753.6,0.002]
[1769752167604,10.20570893,2754.3,2753.6,0.002]
[1769752176443,10.2057188,2754.3,2753.6,0.002]
[1769752176932,10.2057188,2754.3,2753.8,0.002]
[1769752178637,10.20571421,2754.3,2753.8,0.002]
[1769752186257,8.93496256,2754.2,2753.6,0.002]
[1769752186441,8.93496256,2753.9,2753.3,0.002]
[1769752186745,8.93496256,2754.0,2753.3,0.002]
[1769752187817,8.93496256,2754.0,2753.3,0.90999641]
[1769752188636,9.84273402,2754.0,2753.3,0.002]
[1769752191249,8.93496256,2753.9,2753.3,0.002]
[1769752193433,8.93496256,2753.6,2753.0,0.00100392]
[1769752193825,8.93496256,2753.6,2752.8,0.002]
[1769752195439,8.93496256,2753.4,2752.8,0.002]
[1769752197348,9.38868291,2753.2,2752.8,0.002]
[1769752197557,10.41835133,2753.1,2752.8,0.002]
[1769752199956,11.32641859,2753.1,2753.0,0.002]
[1769752200257,11.32641859,2753.1,2753.0,0.001]
[1769752200449,10.41835133,2753.1,2752.8,0.00100587]
[1769752200652,9.38868291,2753.1,2752.8,0.00100587]
[1769752204767,0.90790238,2753.6,2752.8,5.66200105]
[1769752205559,10.29658529,2753.6,2752.8,5.66200105]
[1769752206857,9.38868291,2753.6,2752.8,6.57015825]
[1769752207070,9.38868291,2753.6,2752.9,0.65701583]
[1769752207870,9.38868291,2753.6,2752.9,6.28896524]
[1769752208656,0.001,2753.8,2752.9,6.28896524]
[1769752208862,0.9088425,2753.8,2753.0,6.53056301]
[1769752209273,0.001,2753.8,2753.0,6.53056301]
[1769752209484,0.001,2753.8,2753.1,1.08199932]
[1769752211584,0.001,2753.8,2753.1,1.9900336]
[1769752211943,0.001,2753.6,2753.1,1.9900336]
[1769752212291,0.001,2753.6,2753.1,1.08199932]
[1769752212441,9.38968291,2753.6,2753.1,1.08199932]
[1769752212641,9.38968291,2753.6,2752.9,1.56512979]
[1769752212844,9.38968291,2753.6,2752.9,0.65701583]
[1769752213040,9.38968291,2753.6,2753.0,0.90809624]
[1769752213446,9.38968291,2753.6,2753.1,0.90805967]
[1769752214888,0.001,2753.6,2753.1,0.90805967]
[1769752215662,0.001,2753.6,2753.0,5.55929121]
[1769752215986,0.001,2753.6,2752.8,0.00100587]
[1769752216155,0.001,2753.6,2752.9,6.11532092]
[1769752216781,9.38968291,2753.6,2752.9,0.55602971]
[1769752217793,9.38968291,2753.6,2752.8,0.00100587]
[1769752217997,9.38968291,2753.6,2752.9,0.90811771]
[1769752218170,10.29759276,2753.6,2752.8,0.90914881]